Workbook

Sheet Sheet1
A1: Producer Operational Data Summary | D1: Applicant: | E1: ABC Company | G1: Feedstock Production Location: | I1: U.S | J1: Ethanol Production Location: | L1: DEF Town, XY State
A2: CI Restults | B2: Corn Ethanol CI, g/MJ | D2: 73.59 | E2: (example CI) | G2: Sorghum Ethanol CI, g/MJ | I2: 74.15 | J2: (example CI) | L2: DRAFT - FOR DISCUSSION ONLY - DO NOT USE
B3: Volume, gal | D3: =AJ33*C33/(C33+H33) -> 75729360.92 | G3: Volume, gal | I3: =AJ33*H33/(C33+H33) -> 15839199.08
A4: Process: | B4: Inputs for Corn and Sorghum and Co-products | AG4: Inputs for Ethanol Production
A5: Data Years | B5: Step 1) Select Feedstock Production Region | AG5: Step 2) Select Region for Ethanol Production (Dry Mill)
B6: Select Regional Electricity Mix for Feedstock Production: | H6: 7-MROW Mix | AG6: Select Regional Electricity Mix for Fuel Production | AO6: 3-CAMX Mix
A7: Monthly Data | B7: Beginning Corn Inventory | C7: Corn Used (calculated) | D7: Corn Received | E7: Ending Corn Inventory | F7: Corn Transport | G7: Beginning Sorghum Inventory | H7: Sorghum Used (calculated) | I7: Sorghum Received | J7: Ending Sorghum Inventory | K7: Sorghum Transport | L7: Dry DGS Produced (calculated) | M7: Dry DGS Sales | N7: Dry DGS Ending inventory | O7: Moisture Content | P7: Modified DGS Produced (calculated) | Q7: Modified DGS Sales | R7: Modified DGS Ending Inventory | S7: Moisture Content | T7: Wet DGS Produced (calculated) | U7: Wet DGS Sales | V7: Wet DGS Ending Inventory | W7: Moisture Content | X7: Syrup Produced (calculated) | Y7: Syrup Sales | Z7: Syrup Ending Inventory | AA7: Moisture Content | AB7: Corn Oil Produced (calculated) | AC7: Corn Oil Sales | AD7: Corn Oil Ending Inventory | AE7: Moisture Content | AF7: DGS Yield (calculated) | AG7: Beginning Denatured Ethanol | AH7: Denatured Ethanol Sales | AI7: Ending Denatured Ethanol | AJ7: Ethanol Produced (calculated) | AK7: NG Use from Invoices | AL7: Biomass Use from Invoices | AM7: Biomass Transport Distance | AN7: Biogas Use from Invoices | AO7: Biogas Parameters | AP7: Other Thermal Energy Use | AQ7: Electricity from Utility Invoices | AR7: Other Electricity Sources | AS7: Ethanol Transport
A8: Unit | B8: Bushels | C8: Bushels | D8: Bushels | E8: Bushels | F8: Miles | G8: Bushels | H8: Bushels | I8: Bushels | J8: Bushels | K8: Miles | L8: Tons | M8: Tons | N8: Tons | O8: % | P8: Tons | Q8: Tons | R8: Tons | S8: % | T8: Tons | U8: Tons | V8: Tons | W8: % | X8: Tons | Y8: Tons | Z8: Tons | AA8: % | AB8: lbs. | AC8: lbs. | AD8: lbs. | AE8: % | AF8: Dry matter lbs/gal EtOH | AG8: Gallons @ 60o F | AH8: Gallons @ 60o F | AI8: Gallons @ 60o F | AJ8: Gallons @ 60o F | AK8: MMBtu, HHV | AL8: Dry Tons | AM8: Miles | AN8: MMBtu, HHV | AP8: MMBtu, HHV | AQ8: kWh | AR8: kWh | AS8: Mode | AT8: Miles
A9: Month 1 | B9: 1000000 | C9: =B9+D9-E9 -> 1330000 | D9: 1330000 | E9: 1000000 | F9: By HDT Truck | K9: By HDT Truck | L9: =M9+N9-0 -> 888 | M9: 588 | N9: 300 | O9: 0.1 | P9: =Q9+R9-0 -> 0 | Q9: 0 | R9: 0 | S9: 0 | T9: =U9+V9-0 -> 53000 | U9: 50000 | V9: 3000 | W9: 0.68 | X9: =Y9+Z9-0 -> 2.2 | Y9: 1 | Z9: 1.2 | AA9: 0.65 | AB9: =AC9+AD9-0 -> 1400000 | AC9: 500000 | AD9: 900000 | AE9: 0.005 | AF9: =(((L9*(1-O9)+P9*(1-S9)+T9*(1-W9)+X9*(1-AA9))*2000+AB9*(1-AE9)))/AJ9 -> 19.08079357 | AG9: 1234560 | AH9: 1000000 | AI9: 1700000 | AJ9: =AG9-AH9+AI9 -> 1934560 | AK9: 75500 | AL9: 95 | AM9: By HDT Truck | AN9: 0 | AO9: Pipeline, miles | AQ9: 1600000 | AS9: By Rail | AT9: 1396
A10: Month 2 | B10: 1000000 | C10: =B10+D10-E10 -> 1300000 | D10: 1200000 | E10: 900000 | F10: 50 | K10: 50 | L10: =M10+N10-N9 -> 1100 | M10: 800 | N10: 600 | O10: 0.11 | P10: =Q10+R10-R9 -> 0 | Q10: 0 | R10: 0 | S10: 0 | T10: =U10+V10-V9 -> 52100 | U10: 55000 | V10: 100 | W10: 0.68 | X10: =Y10+Z10-Z9 -> 1 | Y10: 1 | Z10: 1.2 | AA10: 0.65 | AB10: =AC10+AD10-AD9 -> 450000 | AC10: 500000 | AD10: 850000 | AE10: =AE9 -> 0.005 | AF10: 6.059398305 | AG10: =AI9 -> 1700000 | AH10: 1000000 | AI10: 5200000 | AJ10: =AG10-AH10+AI10 -> 5900000 | AK10: 78000 | AL10: 10 | AM10: 80 | AN10: 0 | AO10: 80 | AQ10: 1500000
A11: Month 3 | B11: 1000000 | C11: 1300000 | D11: 1400000 | E11: 1100000 | F11: By Rail | K11: By Rail | L11: =M11+N11-N10 -> 116 | M11: 136 | N11: 580 | O11: 0.11 | P11: =Q11+R11-R10 -> 0 | Q11: 0 | R11: 0 | S11: 0 | T11: =U11+V11-V10 -> 55485 | U11: 55555 | V11: 30 | W11: 0.68 | X11: =Y11+Z11-Z10 -> 1 | Y11: 1 | Z11: 1.2 | AA11: 0.65 | AB11: =AC11+AD11-AD10 -> 600000 | AC11: 500000 | AD11: 950000 | AE11: =AE10 -> 0.005 | AF11: 5.502209091 | AG11: =AI10 -> 5200000 | AH11: 1000000 | AI11: 2400000 | AJ11: 6600000 | AK11: 67000 | AL11: 260 | AM11: By Rail | AN11: 0 | AQ11: 1500000
A12: Month 4 | B12: 1000000 | C12: 1100000 | D12: 1400000 | E12: 1300000 | F12: 1400 | G12: 500000 | H12: =G12+I12-J12 -> 900000 | I12: 1000000 | J12: 600000 | K12: 1400 | L12: 132 | M12: 100 | N12: 612 | O12: 0.11 | P12: 0 | Q12: 0 | R12: 0 | S12: 0 | T12: 22215 | U12: 22225 | V12: 20 | W12: 0.68 | X12: 1 | Y12: 1 | Z12: 1.2 | AA12: 0.65 | AB12: 250000 | AC12: 500000 | AD12: 700000 | AE12: 0.005 | AF12: 3.86895 | AG12: 2400000 | AH12: 1000000 | AI12: 2400000 | AJ12: 3800000 | AK12: 73000 | AL12: 200 | AM12: 2000 | AN12: 0 | AQ12: 1500000 | AS12: By Heavy Duty Diesel Truck | AT12: 100
A13: Month 5 | B13: 1000000 | C13: 839000 | D13: 839000 | E13: 1000000 | G13: 500000 | H13: 2100000 | I13: 2000000 | J13: 400000 | L13: 135 | M13: 135 | N13: 612 | O13: 0.11 | P13: 0 | Q13: 0 | R13: 0 | S13: 0 | T13: 79992 | U13: 80000 | V13: 12 | W13: 0.68 | X13: 1 | Y13: 1 | Z13: 1.2 | AA13: 0.65 | AB13: 300000 | AC13: 500000 | AD13: 500000 | AE13: 0.005 | AF13: 8.768538983 | AG13: 2400000 | AH13: 1000000 | AI13: 4500000 | AJ13: 5900000 | AK13: 53000 | AL13: 100 | AN13: 0 | AQ13: 1500000
A14: Month 6 | B14: 1000000 | C14: 800000 | D14: 1300000 | E14: 1500000 | G14: 500000 | H14: 750000 | I14: 700000 | J14: 450000 | L14: 135 | M14: 135 | N14: 612 | O14: 0.11 | P14: 0 | Q14: 0 | R14: 0 | S14: 0 | T14: 90010 | U14: 90000 | V14: 22 | W14: 0.68 | X14: 1 | Y14: 1 | Z14: 1.2 | AA14: 0.65 | AB14: 984000 | AC14: 500000 | AD14: 984000 | AE14: 0.005 | AF14: 10.89379259 | AG14: 4500000 | AH14: 1500000 | AI14: 2400000 | AJ14: 5400000 | AK14: 73000 | AL14: 81 | AN14: 0 | AQ14: 1500000 | AS14: By Other Modes
A15: Month 7 | B15: 1000000 | C15: 1700000 | D15: 1500000 | E15: 800000 | L15: 435 | M15: 435 | N15: 612 | O15: 0.11 | P15: 0 | Q15: 0 | R15: 0 | S15: 0 | T15: 79980 | U15: 80000 | V15: 2 | W15: 0.68 | X15: 1 | Y15: 1 | Z15: 1.2 | AA15: 0.65 | AB15: =AC15+AD15-AD14 -> 916000 | AC15: 800000 | AD15: 1100000 | AE15: 0.005 | AF15: 23.66769024 | AG15: 2400000 | AH15: 2566000 | AI15: 2400000 | AJ15: 2234000 | AK15: 77000 | AL15: 105 | AN15: 0 | AQ15: 1500000
A16: Month 8 | B16: 1000000 | C16: 1500000 | D16: 1500000 | E16: 1000000 | L16: 133 | M16: 133 | N16: 612 | O16: 0.11 | P16: 0 | Q16: 0 | R16: 0 | S16: 0 | T16: 50031 | U16: 50000 | V16: 33 | W16: 0.68 | X16: 1 | Y16: 1 | Z16: 1.2 | AA16: 0.65 | AB16: 460000 | AC16: 600000 | AD16: 960000 | AE16: 0.005 | AF16: 8.609205263 | AG16: 2400000 | AH16: 1000000 | AI16: 2400000 | AJ16: 3800000 | AK16: 78999 | AL16: 90 | AN16: 0 | AQ16: 1500000 | AS16: Specify Mode | AT16: 0
A17: Month 9 | B17: 1000000 | C17: 1580000 | D17: 1280000 | E17: 700000 | L17: 461 | M17: 461 | N17: 612 | O17: 0.11 | P17: 0 | Q17: 0 | R17: 0 | S17: 0 | T17: 29972 | U17: 30000 | V17: 5 | W17: 0.68 | X17: 1 | Y17: 1 | Z17: 1.2 | AA17: 0.65 | AB17: 380000 | AC17: 580000 | AD17: 760000 | AE17: 0.005 | AF17: 9.2643 | AG17: 2400000 | AH17: 2600000 | AI17: 2400000 | AJ17: 2200000 | AK17: 72000 | AL17: 86 | AN17: 0 | AQ17: 1500000 | AS17: Specify Mode | AT17: 0
A18: Month 10 | B18: 1000000 | C18: 1090000 | D18: 1290000 | E18: 1200000 | L18: 314 | M18: 314 | N18: 612 | O18: 0.11 | P18: 0 | Q18: 0 | R18: 0 | S18: 0 | T18: 52273 | U18: 52222 | V18: 56 | W18: 0.68 | X18: 1 | Y18: 1 | Z18: 1.2 | AA18: 0.65 | AB18: 550000 | AC18: 690000 | AD18: 620000 | AE18: 0.005 | AF18: 21.60099375 | AG18: 2400000 | AH18: 3200000 | AI18: 2400000 | AJ18: 1600000 | AK18: 68000 | AL18: 66 | AN18: 0 | AQ18: 1500000
A19: Month 11 | B19: 1000000 | C19: 1550000 | D19: 1550000 | E19: 1000000 | L19: 133 | M19: 133 | N19: 612 | O19: 0.11 | P19: 0 | Q19: 0 | R19: 0 | S19: 0 | T19: 55398 | U19: 55444 | V19: 10 | W19: 0.68 | X19: 1 | Y19: 1 | Z19: 1.2 | AA19: 0.65 | AB19: 80000 | AC19: 500000 | AD19: 200000 | AE19: 0.005 | AF19: 12.77562857 | AG19: 2400000 | AH19: 2000000 | AI19: 2400000 | AJ19: 2800000 | AK19: 80000 | AL19: 116 | AN19: 0 | AQ19: 1500000
A20: Month 12 | B20: 1000000 | C20: 950000 | D20: 1450000 | E20: 1500000 | L20: 161 | M20: 161 | N20: 612 | O20: 0.11 | P20: 0 | Q20: 0 | R20: 0 | S20: 0 | T20: 10991 | U20: 11000 | V20: 1 | W20: 0.68 | X20: 1 | Y20: 1 | Z20: 1.2 | AA20: 0.65 | AB20: 1200000 | AC20: 500000 | AD20: 900000 | AE20: 0.005 | AF20: 2.240926316 | AG20: 2400000 | AH20: 1000000 | AI20: 2400000 | AJ20: 3800000 | AK20: 85000 | AL20: 115 | AN20: 0 | AQ20: 1500000
A21: Month 13 | B21: 1000000 | C21: 1408000 | D21: 1308000 | E21: 900000 | L21: 131 | M21: 131 | N21: 612 | O21: 0.11 | P21: 0 | Q21: 0 | R21: 0 | S21: 0 | T21: 11049 | U21: 11000 | V21: 50 | W21: 0.68 | X21: 1 | Y21: 1 | Z21: 1.2 | AA21: 0.65 | AB21: 500000 | AC21: 500000 | AD21: 900000 | AE21: 0.005 | AF21: 2.053352632 | AG21: 2400000 | AH21: 1000000 | AI21: 2400000 | AJ21: 3800000 | AK21: 80000 | AL21: 111 | AN21: 0 | AQ21: 1500000
A22: Month 14 | B22: 1000000 | C22: 1308000 | D22: 1308000 | E22: 1000000 | L22: 111 | M22: 111 | N22: 612 | O22: 0.11 | P22: 0 | Q22: 0 | R22: 0 | S22: 0 | T22: 11000 | U22: 11000 | V22: 50 | W22: 0.68 | X22: 1 | Y22: 1 | Z22: 1.2 | AA22: 0.65 | AB22: 155500.47 | AC22: 500000 | AD22: 555500.47 | AE22: 0.005 | AF22: 1.945527097 | AG22: 2400000 | AH22: 1000000 | AI22: 2400000 | AJ22: 3800000 | AK22: 60000 | AL22: 128 | AN22: 0 | AQ22: 1500000
A23: Month 15 | B23: 1000000 | C23: 1418000 | D23: 1308000 | E23: 890000 | L23: 120 | M23: 120 | N23: 612 | O23: 0.11 | P23: 0 | Q23: 0 | R23: 0 | S23: 0 | T23: 10980 | U23: 11000 | V23: 30 | W23: 0.68 | X23: 1 | Y23: 1 | Z23: 1.2 | AA23: 0.65 | AB23: 680467.5 | AC23: 500000 | AD23: 735967.97 | AE23: 0.005 | AF23: 2.083832937 | AG23: 2400000 | AH23: 1000000 | AI23: 2400000 | AJ23: 3800000 | AK23: 82000 | AL23: 126 | AN23: 0 | AQ23: 1500000
A24: Month 16 | B24: 1000000 | C24: 1308000 | D24: 1308000 | E24: 1000000 | L24: 145 | M24: 145 | N24: 612 | O24: 0.11 | P24: 0 | Q24: 0 | R24: 0 | S24: 0 | T24: 10990 | U24: 11000 | V24: 20 | W24: 0.68 | X24: 1 | Y24: 1 | Z24: 1.2 | AA24: 0.65 | AB24: 544032.03 | AC24: 500000 | AD24: 780000 | AE24: 0.005 | AF24: 2.061503124 | AG24: 2400000 | AH24: 1000000 | AI24: 2400000 | AJ24: 3800000 | AK24: 80000 | AL24: 120 | AN24: 0 | AQ24: 1500000
A25: Month 17 | B25: 1000000 | C25: 1251110 | D25: 1308000 | E25: 1056890 | L25: 123 | M25: 123 | N25: 612 | O25: 0.11 | P25: 0 | Q25: 0 | R25: 0 | S25: 0 | T25: 11040 | U25: 11000 | V25: 60 | W25: 0.68 | X25: 1 | Y25: 1 | Z25: 1.2 | AA25: 0.65 | AB25: 688000 | AC25: 500000 | AD25: 968000 | AE25: 0.005 | AF25: 2.097315789 | AG25: 2400000 | AH25: 1000000 | AI25: 2400000 | AJ25: 3800000 | AK25: 82000 | AL25: 116 | AN25: 0 | AQ25: 1500000
A26: Month 18 | B26: 1000000 | C26: 1645460 | D26: 1308000 | E26: 662540 | L26: 56 | M26: 56 | N26: 612 | O26: 0.11 | P26: 0 | Q26: 0 | R26: 0 | S26: 0 | T26: 10995 | U26: 11000 | V26: 55 | W26: 0.68 | X26: 1 | Y26: 1 | Z26: 1.2 | AA26: 0.65 | AB26: 212000 | AC26: 500000 | AD26: 680000 | AE26: 0.005 | AF26: 1.933715789 | AG26: 2400000 | AH26: 1000000 | AI26: 2400000 | AJ26: 3800000 | AK26: 77040 | AL26: 116 | AN26: 0 | AQ26: 1500000
A27: Month 19 | B27: 1000000 | C27: 1058000 | D27: 1308000 | E27: 1250000 | G27: 500000 | H27: =G27+I27-J27 -> 800000 | I27: 1000000 | J27: 700000 | L27: 548 | M27: 548 | N27: 612 | O27: 0.11 | P27: 0 | Q27: 0 | R27: 0 | S27: 0 | T27: 10996 | U27: 11000 | V27: 51 | W27: 0.68 | X27: 1 | Y27: 1 | Z27: 1.2 | AA27: 0.65 | AB27: 590000 | AC27: 500000 | AD27: 770000 | AE27: 0.005 | AF27: 2.263323684 | AG27: 2400000 | AH27: 1000000 | AI27: 2400000 | AJ27: 3800000 | AK27: 79000 | AL27: 86 | AN27: 0 | AQ27: 1500000
A28: Month 20 | B28: 1000000 | C28: 1420000 | D28: 1408000 | E28: 988000 | G28: 500000 | H28: 1470000 | I28: 1500000 | J28: 530000 | L28: 102 | M28: 102 | N28: 612 | O28: 0.11 | P28: 0 | Q28: 0 | R28: 0 | S28: 0 | T28: 10970 | U28: 11000 | V28: 21 | W28: 0.68 | X28: 1 | Y28: 1 | Z28: 1.2 | AA28: 0.65 | AB28: 730000 | AC28: 500000 | AD28: 1000000 | AE28: 0.005 | AF28: 2.086686842 | AG28: 2400000 | AH28: 1000000 | AI28: 2400000 | AJ28: 3800000 | AK28: 77000 | AL28: 86 | AN28: 0 | AQ28: 1500000
A29: Month 21 | B29: 1000000 | C29: 1755000 | D29: 1408000 | E29: 653000 | G29: 500000 | H29: 610000 | I29: 700000 | J29: 590000 | L29: 23 | M29: 23 | N29: 612 | O29: 0.11 | P29: 0 | Q29: 0 | R29: 0 | S29: 0 | T29: 10991 | U29: 11000 | V29: 12 | W29: 0.68 | X29: 1 | Y29: 1 | Z29: 1.2 | AA29: 0.65 | AB29: 400000 | AC29: 500000 | AD29: 900000 | AE29: 0.005 | AF29: 1.966810526 | AG29: 2400000 | AH29: 1000000 | AI29: 2400000 | AJ29: 3800000 | AK29: 58000 | AL29: 89 | AN29: 0 | AQ29: 1500000
A30: Month 22 | B30: 1000000 | C30: 972360 | D30: 1208000 | E30: 1235640 | L30: 110 | M30: 110 | N30: 612 | O30: 0.11 | P30: 0 | Q30: 0 | R30: 0 | S30: 0 | T30: 11001 | U30: 11000 | V30: 13 | W30: 0.68 | X30: 1 | Y30: 1 | Z30: 1.2 | AA30: 0.65 | AB30: 655000 | AC30: 500000 | AD30: 1055000 | AE30: 0.005 | AF30: 2.076017105 | AG30: 2400000 | AH30: 1000000 | AI30: 2400000 | AJ30: 3800000 | AK30: 99000 | AL30: 134 | AN30: 0 | AQ30: 1500000
A31: Month 23 | B31: 1000000 | C31: 1508000 | D31: 1508000 | E31: 1000000 | L31: 200 | M31: 200 | N31: 612 | O31: 0.11 | P31: 0 | Q31: 0 | R31: 0 | S31: 0 | T31: 10997 | U31: 11000 | V31: 10 | W31: 0.68 | X31: 1 | Y31: 1 | Z31: 1.2 | AA31: 0.65 | AB31: 645000 | AC31: 500000 | AD31: 1200000 | AE31: 0.005 | AF31: 2.114882895 | AG31: 2400000 | AH31: 1000000 | AI31: 2400000 | AJ31: 3800000 | AK31: 87000 | AL31: 111 | AN31: 0 | AQ31: 1500000
A32: Month 24 | B32: 1000000 | C32: 1608000 | D32: 1508000 | E32: 900000 | L32: 222 | M32: 222 | N32: 612 | O32: 0.11 | P32: 0 | Q32: 0 | R32: 0 | S32: 0 | T32: 11009 | U32: 11000 | V32: 19 | W32: 0.68 | X32: 1 | Y32: 1 | Z32: 1.2 | AA32: 0.65 | AB32: 300000 | AC32: 500000 | AD32: 1000000 | AE32: 0.005 | AF32: 2.036873684 | AG32: 2400000 | AH32: 1000000 | AI32: 2400000 | AJ32: 3800000 | AK32: 80000 | AL32: 127 | AN32: 0 | AQ32: 1500000
A33: Total or Average | B33: =SUM(B9:B32) -> 24000000 | C33: =SUM(C9:C32) -> 31698930 | D33: =SUM(D9:D32) -> 32235000 | E33: =SUM(E9:E32) -> 24536070 | G33: 3000000 | H33: =SUM(H9:H32) -> 6630000 | I33: 6900000 | J33: 3270000 | L33: =SUM(L9:L32) -> 6034 | M33: =SUM(M9:M32) -> 5422 | N33: =SUM(N9:N32) -> 14332 | O33: =AVERAGE(O9:O32) -> 0.1095833333 | P33: =SUM(P9:P32) -> 0 | Q33: =SUM(Q9:Q32) -> 0 | R33: 0 | S33: =AVERAGE(S9:S32) -> 0 | T33: =SUM(T9:T32) -> 763465 | U33: =SUM(U9:U32) -> 763446 | V33: =SUM(V9:V32) -> 3682 | W33: =AVERAGE(W9:W32) -> 0.68 | X33: =SUM(X9:X32) -> 25.2 | Y33: =SUM(Y9:Y32) -> 24 | Z33: =SUM(Z9:Z32) -> 28.8 | AA33: =AVERAGE(AA9:AA32) -> 0.65 | AB33: =SUM(AB9:AB32) -> 13670000 | AC33: =SUM(AC9:AC32) -> 12670000 | AD33: =SUM(AD9:AD32) -> 19968468.44 | AE33: =AVERAGE(AE9:AE32) -> 0.005 | AF33: =(((L33*(1-O33)+P33*(1-S33)+T33*(1-W33)+X33*(1-AA33))*2000+AB33*(1-AE33)))/AJ33 -> 5.6021678 | AG33: =SUM(AG9:AG32) -> 60634560 | AH33: 30866000 | AI33: =SUM(AI9:AI32) -> 61800000 | AJ33: =SUM(AJ9:AJ32) -> 91568560 | AK33: =SUM(AK9:AK32) -> 1821539 | AL33: 2674 | AN33: 0 | AP33: =SUM(AP9:AP32) -> 0 | AQ33: 36100000 | AR33: =SUM(AR9:AR32) -> 0

Sheet Sheet2

Sheet Sheet3
